Workbook

Sheet Gr 1
A1: Home Language" Grade 1
A2: https://www.education.gov.za/Curriculum/LearningandTeachingSupportMaterials(LTSM)/GradedReadersandBigBookHL.aspx
A3: Resources | B3: Term | C3: Subject | D3: Source of doc | E3: Language | F3: Teacher | G3: Learner | H3: Nr of A4 pages for A5 readers | I3: Doc Format | J3: Nr of A4 pages for A5 readers: https://www.education.gov.za/Curriculum/LearningandTeachingSupportMaterials(LTSM)/GradedReadersandBigBookHL.aspx | K3: Coverpage A5 cardboard | L3: Number of books per teacher | M3: Total number of books (Teachers x Number of Books per teacher)
C4: Level 1: Animal Sports Day | D4: DBE | E4: SiSwati | F4: 570 | G4: N/A | H4: 6 | I4: pdf | J4: =F4*H4 -> 3420 | K4: 4 x cover page per book | L4: 15 | M4: =F4*L4 -> 8550
D5: DBE | E5: IsiZulu | F5: 186 | G5: N/A | H5: 6 | I5: pdf | J5: 1116 | K5: 4 x cover page per book | L5: 15 | M5: =F5*L5 -> 2790
D6: DBE | E6: IsiNdebele | F6: 279 | G6: N/A | H6: 6 | I6: pdf | J6: 1674 | K6: 4 x cover page per book | L6: 15 | M6: 4185
D7: DBE | E7: Sepedi | F7: 137 | G7: N/A | H7: 6 | I7: pdf | J7: 822 | K7: 4 x cover page per book | L7: 15 | M7: 2055
D8: DBE | E8: Setswana | F8: 54 | G8: N/A | H8: 6 | I8: pdf | J8: 324 | K8: 4 x cover page per book | L8: 15 | M8: 810
C9: Level 1: Frog goes to school | D9: DBE | E9: SiSwati | F9: 570 | G9: N/A | H9: 6 | I9: pdf | J9: 3420 | K9: 4 x cover page per book | L9: 15 | M9: 8550
D10: DBE | E10: IsiZulu | F10: 186 | G10: N/A | H10: 6 | I10: pdf | J10: 1116 | K10: 4 x cover page per book | L10: 15 | M10: 2790
D11: DBE | E11: IsiNdebele | F11: 279 | G11: N/A | H11: 6 | I11: pdf | J11: 1674 | K11: 4 x cover page per book | L11: 15 | M11: 4185
D12: DBE | E12: Sepedi | F12: 137 | G12: N/A | H12: 6 | I12: pdf | J12: 822 | K12: 4 x cover page per book | L12: 15 | M12: 2055
D13: DBE | E13: Setswana | F13: 54 | G13: N/A | H13: 6 | I13: pdf | J13: 324 | K13: 4 x cover page per book | L13: 15 | M13: 810
A14: Dbe graded readers | C14: Level 1: My first book | D14: DBE | E14: SiSwati | F14: 570 | G14: N/A | H14: 6 | I14: pdf | J14: 3420 | K14: 4 x cover page per book | L14: 15 | M14: 8550
D15: DBE | E15: IsiZulu | F15: 186 | G15: N/A | H15: 6 | I15: pdf | J15: 1116 | K15: 4 x cover page per book | L15: 15 | M15: 2790
D16: DBE | E16: IsiNdebele | F16: 279 | G16: N/A | H16: 6 | I16: pdf | J16: 1674 | K16: 4 x cover page per book | L16: 15 | M16: 4185
D17: DBE | E17: Sepedi | F17: 137 | G17: N/A | H17: 6 | I17: pdf | J17: 822 | K17: 4 x cover page per book | L17: 15 | M17: 2055
D18: DBE | E18: Setswana | F18: 54 | G18: N/A | H18: 6 | I18: pdf | J18: =F18*H18 -> 324 | K18: 4 x cover page per book | L18: 15 | M18: 810
C19: Level 1: We all go to school | D19: DBE | E19: SiSwati | F19: 570 | G19: N/A | H19: 6 | I19: pdf | J19: 3420 | K19: 4 x cover page per book | L19: 15 | M19: 8550
D20: DBE | E20: IsiZulu | F20: 186 | G20: N/A | H20: 6 | I20: pdf | J20: 1116 | K20: 4 x cover page per book | L20: 15 | M20: 2790
D21: DBE | E21: IsiNdebele | F21: 279 | G21: N/A | H21: 6 | I21: pdf | J21: 1674 | K21: 4 x cover page per book | L21: 15 | M21: 4185
D22: DBE | E22: Sepedi | F22: 137 | G22: N/A | H22: 6 | I22: pdf | J22: 822 | K22: 4 x cover page per book | L22: 15 | M22: 2055
D23: DBE | E23: Setswana | F23: 54 | G23: N/A | H23: 6 | I23: pdf | J23: 324 | K23: 4 x cover page per book | L23: 15 | M23: 810
C24: Level 2: Ben finds a new friend | D24: DBE | E24: SiSwati | F24: 570 | G24: N/A | H24: 6 | I24: pdf | J24: 3420 | K24: 4 x cover page per book | L24: 15 | M24: 8550
D25: DBE | E25: IsiZulu | F25: 186 | G25: N/A | H25: 6 | I25: pdf | J25: 1116 | K25: 4 x cover page per book | L25: 15 | M25: 2790
D26: DBE | E26: IsiNdebele | F26: 279 | G26: N/A | H26: 6 | I26: pdf | J26: 1674 | K26: 4 x cover page per book | L26: 15 | M26: 4185
D27: DBE | E27: Sepedi | F27: 137 | G27: N/A | H27: 6 | I27: pdf | J27: =F27*H27 -> 822 | K27: 4 x cover page per book | L27: 15 | M27: 2055
D28: DBE | E28: Setswana | F28: 54 | G28: N/A | H28: 6 | I28: pdf | J28: =F28*H28 -> 324 | K28: 4 x cover page per book | L28: 15 | M28: 810
C29: Level 2: Chuck the truck | D29: DBE | E29: SiSwati | F29: 570 | G29: N/A | H29: 6 | I29: pdf | J29: 3420 | K29: 4 x cover page per book | L29: 15 | M29: 8550
D30: DBE | E30: IsiZulu | F30: 186 | G30: N/A | H30: 6 | I30: pdf | J30: 1116 | K30: 4 x cover page per book | L30: 15 | M30: 2790
D31: DBE | E31: IsiNdebele | F31: 279 | G31: N/A | H31: 6 | I31: pdf | J31: 1674 | K31: 4 x cover page per book | L31: 15 | M31: 4185
D32: DBE | E32: Sepedi | F32: 137 | G32: N/A | H32: 6 | I32: pdf | J32: 822 | K32: 4 x cover page per book | L32: 15 | M32: 2055
D33: DBE | E33: Setswana | F33: 54 | G33: N/A | H33: 6 | I33: pdf | J33: 324 | K33: 4 x cover page per book | L33: 15 | M33: 810
C34: Level 2: Dressing up | D34: DBE | E34: SiSwati | F34: 570 | G34: N/A | H34: 6 | I34: pdf | J34: 3420 | K34: 4 x cover page per book | L34: 15 | M34: 8550
D35: DBE | E35: IsiZulu | F35: 186 | G35: N/A | H35: 6 | I35: pdf | J35: 1116 | K35: 4 x cover page per book | L35: 15 | M35: 2790
D36: DBE | E36: IsiNdebele | F36: 279 | G36: N/A | H36: 6 | I36: pdf | J36: 1674 | K36: 4 x cover page per book | L36: 15 | M36: 4185
D37: DBE | E37: Sepedi | F37: 137 | G37: N/A | H37: 6 | I37: pdf | J37: 822 | K37: 4 x cover page per book | L37: 15 | M37: 2055
D38: DBE | E38: Setswana | F38: 54 | G38: N/A | H38: 6 | I38: pdf | J38: 324 | K38: 4 x cover page per book | L38: 15 | M38: 810
C39: Level 2: We love soccer | D39: DBE | E39: SiSwati | F39: 570 | G39: N/A | H39: 6 | I39: pdf | J39: 3420 | K39: 4 x cover page per book | L39: 15 | M39: 8550
D40: DBE | E40: IsiZulu | F40: 186 | G40: N/A | H40: 6 | I40: pdf | J40: 1116 | K40: 4 x cover page per book | L40: 15 | M40: 2790
D41: DBE | E41: IsiNdebele | F41: 279 | G41: N/A | H41: 6 | I41: pdf | J41: 1674 | K41: 4 x cover page per book | L41: 15 | M41: 4185
D42: DBE | E42: Sepedi | F42: 137 | G42: N/A | H42: 6 | I42: pdf | J42: 822 | K42: 4 x cover page per book | L42: 15 | M42: 2055
D43: DBE | E43: Setswana | F43: 54 | G43: N/A | H43: 6 | I43: pdf | J43: 324 | K43: 4 x cover page per book | L43: 15 | M43: 810
C44: Level 3: Ann goes to the doctor | D44: DBE | E44: SiSwati | F44: 570 | G44: N/A | H44: 6 | I44: pdf | J44: 3420 | K44: 4 x cover page per book | L44: 15 | M44: 8550
D45: DBE | E45: IsiZulu | F45: 186 | G45: N/A | H45: 6 | I45: pdf | J45: 1116 | K45: 4 x cover page per book | L45: 15 | M45: 2790
D46: DBE | E46: IsiNdebele | F46: 279 | G46: N/A | H46: 6 | I46: pdf | J46: 1674 | K46: 4 x cover page per book | L46: 15 | M46: 4185
D47: DBE | E47: Sepedi | F47: 137 | G47: N/A | H47: 6 | I47: pdf | J47: 822 | K47: 4 x cover page per book | L47: 15 | M47: 2055
D48: DBE | E48: Setswana | F48: 54 | G48: N/A | H48: 6 | I48: pdf | J48: 324 | K48: 4 x cover page per book | L48: 15 | M48: 810
C49: Level 3: Dudu’s dream | D49: DBE | E49: SiSwati | F49: 570 | G49: N/A | H49: 6 | I49: pdf | J49: 3420 | K49: 4 x cover page per book | L49: 15 | M49: 8550
D50: DBE | E50: IsiZulu | F50: 186 | G50: N/A | H50: 6 | I50: pdf | J50: 1116 | K50: 4 x cover page per book | L50: 15 | M50: 2790
D51: DBE | E51: IsiNdebele | F51: 279 | G51: N/A | H51: 6 | I51: pdf | J51: 1674 | K51: 4 x cover page per book | L51: 15 | M51: 4185
D52: DBE | E52: Sepedi | F52: 137 | G52: N/A | H52: 6 | I52: pdf | J52: 822 | K52: 4 x cover page per book | L52: 15 | M52: 2055
D53: DBE | E53: Setswana | F53: 54 | G53: N/A | H53: 6 | I53: pdf | J53: 324 | K53: 4 x cover page per book | L53: 15 | M53: 810
C54: Level 3: Little red hen | D54: DBE | E54: SiSwati | F54: 570 | G54: N/A | H54: 6 | I54: pdf | J54: 3420 | K54: 4 x cover page per book | L54: 15 | M54: 8550
D55: DBE | E55: IsiZulu | F55: 186 | G55: N/A | H55: 6 | I55: pdf | J55: 1116 | K55: 4 x cover page per book | L55: 15 | M55: 2790
D56: DBE | E56: IsiNdebele | F56: 279 | G56: N/A | H56: 6 | I56: pdf | J56: 1674 | K56: 4 x cover page per book | L56: 15 | M56: 4185
D57: DBE | E57: Sepedi | F57: 137 | G57: N/A | H57: 6 | I57: pdf | J57: =F57*H57 -> 822 | K57: 4 x cover page per book | L57: 15 | M57: 2055
D58: DBE | E58: Setswana | F58: 54 | G58: N/A | H58: 6 | I58: pdf | J58: 324 | K58: 4 x cover page per book | L58: 15 | M58: 810
L59: TOTAL | M59: =SUM(M4:M58) -> 202290

Sheet Gr 2
A1: HOME LANGUAGE
A2: https://www.education.gov.za/Curriculum/LearningandTeachingSupportMaterials(LTSM)/GradedReadersandBigBookHL.aspx
A3: Resources | B3: Term | C3: Subject | D3: Source of doc | E3: Language | F3: Teacher | G3: Learner | H3: Nr. of coloured printing pages | I3: Doc Format | J3: Nr of A4 pages for A5 readers | K3: Coverpage A5 cardboard | L3: Number of books per teacher | M3: Total number of books (Teachers x Number of Books per teacher)
C4: Level 1: A dog’s life | D4: DBE | E4: SiSwati | F4: 541 | G4: N/A | H4: 6 | I4: pdf | J4: =F4*H4 -> 3246 | K4: 4 x cover page per book | L4: 15 | M4: =F4*L4 -> 8115
D5: DBE | E5: IsiZulu | F5: 176 | G5: N/A | H5: 6 | I5: pdf | J5: =F5*H5 -> 1056 | K5: 4 x cover page per book | L5: 15 | M5: =F5*L5 -> 2640
D6: DBE | E6: IsiNdebele | F6: 279 | G6: N/A | H6: 6 | I6: pdf | J6: 1674 | K6: 4 x cover page per book | L6: 15 | M6: 4185
D7: DBE | E7: Sepedi | F7: 137 | G7: N/A | H7: 6 | I7: pdf | J7: 822 | K7: 4 x cover page per book | L7: 15 | M7: 2055
D8: DBE | E8: Setswana | F8: 52 | G8: N/A | H8: 6 | I8: pdf | J8: 312 | K8: 4 x cover page per book | L8: 15 | M8: 780
C9: Level 1: How the zebra got stripes | D9: DBE | E9: SiSwati | F9: 541 | G9: N/A | H9: 6 | I9: pdf | J9: 3246 | K9: 4 x cover page per book | L9: 15 | M9: 8115
D10: DBE | E10: IsiZulu | F10: 176 | G10: N/A | H10: 6 | I10: pdr | J10: 1056 | K10: 4 x cover page per book | L10: 15 | M10: 2640
D11: DBE | E11: IsiNdebele | F11: 279 | G11: N/A | H11: 6 | I11: pdf | J11: 1674 | K11: 4 x cover page per book | L11: 15 | M11: 4185
D12: DBE | E12: Sepedi | F12: 137 | G12: N/A | H12: 6 | I12: pdf | J12: 822 | K12: 4 x cover page per book | L12: 15 | M12: 2055
D13: DBE | E13: Setswana | F13: 52 | G13: N/A | H13: 6 | I13: pdf | J13: 312 | K13: 4 x cover page per book | L13: 15 | M13: 780
A14: DBE Graded Readers | C14: Level 1: Jerry loves reading | D14: DBE | E14: SiSwati | F14: 541 | G14: N/A | H14: 6 | I14: pdf | J14: 3246 | K14: 4 x cover page per book | L14: 15 | M14: 8115
D15: DBE | E15: IsiZulu | F15: 176 | G15: N/A | H15: 6 | I15: pdf | J15: 1056 | K15: 4 x cover page per book | L15: 15 | M15: 2640
A16: Coulered printing | D16: DBE | E16: IsiNdebele | F16: 279 | G16: N/A | H16: 6 | I16: pdf | J16: 1674 | K16: 4 x cover page per book | L16: 15 | M16: 4185
D17: DBE | E17: Sepedi | F17: 137 | G17: N/A | H17: 6 | I17: pdf | J17: 822 | K17: 4 x cover page per book | L17: 15 | M17: 2055
D18: DBE | E18: Setswana | F18: 52 | G18: N/A | H18: 6 | I18: pdf | J18: 312 | K18: 4 x cover page per book | L18: 15 | M18: 780
C19: Level 1: Sisi makes new friends | D19: DBE | E19: SiSwati | F19: 541 | G19: N/A | H19: 6 | I19: pdf | J19: 3246 | K19: 4 x cover page per book | L19: 15 | M19: 8115
D20: DBE | E20: IsiZulu | F20: 176 | G20: N/A | H20: 6 | I20: pdf | J20: 1056 | K20: 4 x cover page per book | L20: 15 | M20: 2640
D21: DBE | E21: IsiNdebele | F21: 279 | G21: N/A | H21: 6 | I21: pdf | J21: 1674 | K21: 4 x cover page per book | L21: 15 | M21: 4185
D22: DBE | E22: Sepedi | F22: 137 | G22: N/A | H22: 6 | I22: pdf | J22: 822 | K22: 4 x cover page per book | L22: 15 | M22: 2055
D23: DBE | E23: Setswana | F23: 52 | G23: N/A | H23: 6 | I23: pdf | J23: 312 | K23: 4 x cover page per book | L23: 15 | M23: 780
C24: Level 2: Bubu gets lost | D24: DBE | E24: SiSwati | F24: 541 | G24: N/A | H24: 6 | I24: pdf | J24: 3246 | K24: 4 x cover page per book | L24: 15 | M24: 8115
D25: DBE | E25: IsiZulu | F25: 176 | G25: N/A | H25: 6 | I25: pdf | J25: 1056 | K25: 4 x cover page per book | L25: 15 | M25: 2640
D26: DBE | E26: IsiNdebele | F26: 279 | G26: N/A | H26: 6 | I26: pdf | J26: 1674 | K26: 4 x cover page per book | L26: 15 | M26: 4185
D27: DBE | E27: Sepedi | F27: 137 | G27: N/A | H27: 6 | I27: pdf | J27: 822 | K27: 4 x cover page per book | L27: 15 | M27: 2055
D28: DBE | E28: Setswana | F28: 52 | G28: N/A | H28: 6 | I28: pdf | J28: 312 | K28: 4 x cover page per book | L28: 15 | M28: 780
C29: Level 2: That’s what friends are for | D29: DBE | E29: SiSwati | F29: 541 | G29: N/A | H29: 6 | I29: pdf | J29: 3246 | K29: 4 x cover page per book | L29: 15 | M29: 8115
D30: DBE | E30: IsiZulu | F30: 176 | G30: N/A | H30: 6 | I30: pdf | J30: 1056 | K30: 4 x cover page per book | L30: 15 | M30: 2640
D31: DBE | E31: IsiNdebele | F31: 279 | G31: N/A | H31: 6 | I31: pdf | J31: 1674 | K31: 4 x cover page per book | L31: 15 | M31: 4185
D32: DBE | E32: Sepedi | F32: 137 | G32: N/A | H32: 6 | I32: pdf | J32: 822 | K32: 4 x cover page per book | L32: 15 | M32: 2055
D33: DBE | E33: Setswana | F33: 52 | G33: N/A | H33: 6 | I33: pdf | J33: 312 | K33: 4 x cover page per book | L33: 15 | M33: 780
C34: Level 2: Ugly Duckling | D34: DBE | E34: SiSwati | F34: 541 | G34: N/A | H34: 6 | I34: pdf | J34: 3246 | K34: 4 x cover page per book | L34: 15 | M34: 8115
D35: DBE | E35: IsiZulu | F35: 176 | G35: N/A | H35: 6 | I35: pdf | J35: 1056 | K35: 4 x cover page per book | L35: 15 | M35: 2640
D36: DBE | E36: IsiNdebele | F36: 279 | G36: N/A | H36: 6 | I36: pdf | J36: 1674 | K36: 4 x cover page per book | L36: 15 | M36: 4185
D37: DBE | E37: Sepedi | F37: 137 | G37: N/A | H37: 6 | I37: pdf | J37: 822 | K37: 4 x cover page per book | L37: 15 | M37: 2055
D38: DBE | E38: Setswana | F38: 52 | G38: N/A | H38: 6 | I38: pdf | J38: 312 | K38: 4 x cover page per book | L38: 15 | M38: 780
C39: Level 3: Animals at sea | D39: DBE | E39: SiSwati | F39: 541 | G39: N/A | H39: 6 | I39: pdf | J39: 3246 | K39: 4 x cover page per book | L39: 15 | M39: 8115
D40: DBE | E40: IsiZulu | F40: 176 | G40: N/A | H40: 6 | I40: pdf | J40: 1056 | K40: 4 x cover page per book | L40: 15 | M40: 2640
D41: DBE | E41: IsiNdebele | F41: 279 | G41: N/A | H41: 6 | I41: pdf | J41: 1674 | K41: 4 x cover page per book | L41: 15 | M41: 4185
D42: DBE | E42: Sepedi | F42: 137 | G42: N/A | H42: 6 | I42: pdf | J42: 822 | K42: 4 x cover page per book | L42: 15 | M42: 2055
D43: DBE | E43: Setswana | F43: 52 | G43: N/A | H43: 6 | I43: pdf | J43: 312 | K43: 4 x cover page per book | L43: 15 | M43: 780
C44: Level 3: Wendy whale | D44: DBE | E44: SiSwati | F44: 541 | G44: N/A | H44: 6 | I44: pdf | J44: 3246 | K44: 4 x cover page per book | L44: 15 | M44: 8115
D45: DBE | E45: IsiZulu | F45: 176 | G45: N/A | H45: 6 | I45: pdf | J45: 1056 | K45: 4 x cover page per book | L45: 15 | M45: 2640
D46: DBE | E46: IsiNdebele | F46: 279 | G46: N/A | H46: 6 | I46: pdf | J46: 1674 | K46: 4 x cover page per book | L46: 15 | M46: 4185
D47: DBE | E47: Sepedi | F47: 137 | G47: N/A | H47: 6 | I47: pdf | J47: 822 | K47: 4 x cover page per book | L47: 15 | M47: 2055
D48: DBE | E48: Setswana | F48: 52 | G48: N/A | H48: 6 | I48: pdf | J48: 312 | K48: 4 x cover page per book | L48: 15 | M48: 780
L49: TOTAL | M49: =SUM(M4:M48) -> 159975

Sheet Gr 3
A1: HOME LANGUAGES : Grade 3
A2: https://www.education.gov.za/Curriculum/LearningandTeachingSupportMaterials(LTSM)/GradedReadersandBigBookHL.aspx
A3: Resource | B3: Term | C3: Subject | D3: Source of doc | E3: Language | F3: Teacher | G3: Learner | H3: Nr. of coloured printing pages | I3: Doc Format | J3: Nr of A4 pages for A5 readers | K3: Coverpage A5 cardboard | L3: Number of books per teacher | M3: Total number of books (Teachers x Number of Books per teacher)
C4: Level 1: Fun in the kitchen | D4: DBE | E4: SiSwati | F4: 538 | G4: N/A | H4: 6 | I4: pdf | J4: =F4*H4 -> 3228 | K4: 4 x cover page per book | L4: 15 | M4: =F4*L4 -> 8070
D5: DBE | E5: IsiZulu | F5: 175 | G5: N/A | H5: 6 | I5: pdf | J5: =F5*H5 -> 1050 | K5: 4 x cover page per book | L5: 15 | M5: =F5*L5 -> 2625
D6: DBE | E6: IsiNdebele | F6: 279 | G6: N/A | H6: 6 | I6: pdf | J6: 1674 | K6: 4 x cover page per book | L6: 15 | M6: 4185
D7: DBE | E7: Sepedi | F7: 137 | G7: N/A | H7: 6 | I7: pdf | J7: 822 | K7: 4 x cover page per book | L7: 15 | M7: 2055
D8: DBE | E8: Setswana | F8: 54 | G8: N/A | H8: 6 | I8: pdf | J8: 324 | K8: 4 x cover page per book | L8: 15 | M8: 810
C9: Level 1: Grumpy kid | D9: DBE | E9: SiSwati | F9: 538 | G9: N/A | H9: 6 | I9: pdf | J9: 3228 | K9: 4 x cover page per book | L9: 15 | M9: 8070
D10: DBE | E10: IsiZulu | F10: 175 | G10: N/A | H10: 6 | I10: pdf | J10: 1050 | K10: 4 x cover page per book | L10: 15 | M10: 2625
D11: DBE | E11: IsiNdebele | F11: 279 | G11: N/A | H11: 6 | I11: pdf | J11: 1674 | K11: 4 x cover page per book | L11: 15 | M11: 4185
D12: DBE | E12: Sepedi | F12: 137 | G12: N/A | H12: 6 | I12: pdf | J12: 822 | K12: 4 x cover page per book | L12: 15 | M12: 2055
D13: DBE | E13: Setswana | F13: 54 | G13: N/A | H13: 6 | I13: pdf | J13: 324 | K13: 4 x cover page per book | L13: 15 | M13: 810
C14: Level 1: Robbie rabbit | D14: DBE | E14: SiSwati | F14: 538 | G14: N/A | H14: 6 | I14: pdf | J14: 3228 | K14: 4 x cover page per book | L14: 15 | M14: 8070
D15: DBE | E15: IsiZulu | F15: 175 | G15: N/A | H15: 6 | I15: pdf | J15: 1050 | K15: 4 x cover page per book | L15: 15 | M15: 2625
D16: DBE | E16: IsiNdebele | F16: 279 | G16: N/A | H16: 6 | I16: pdf | J16: 1674 | K16: 4 x cover page per book | L16: 15 | M16: 4185
D17: DBE | E17: Sepedi | F17: 137 | G17: N/A | H17: 6 | I17: pdf | J17: 822 | K17: 4 x cover page per book | L17: 15 | M17: 2055
D18: DBE | E18: Setswana | F18: 54 | G18: N/A | H18: 6 | I18: pdf | J18: 324 | K18: 4 x cover page per book | L18: 15 | M18: 810
C19: Level 1: Sea adventure | D19: DBE | E19: SiSwati | F19: 538 | G19: N/A | H19: 6 | I19: pdf | J19: 3228 | K19: 4 x cover page per book | L19: 15 | M19: 8070
D20: DBE | E20: IsiZulu | F20: 175 | G20: N/A | H20: 6 | I20: pdf | J20: 1050 | K20: 4 x cover page per book | L20: 15 | M20: 2625
D21: DBE | E21: IsiNdebele | F21: 279 | G21: N/A | H21: 6 | I21: pdf | J21: 1674 | K21: 4 x cover page per book | L21: 15 | M21: 4185
D22: DBE | E22: Sepedi | F22: 137 | G22: N/A | H22: 6 | I22: pdf | J22: 822 | K22: 4 x cover page per book | L22: 15 | M22: 2055
D23: DBE | E23: Setswana | F23: 54 | G23: N/A | H23: 6 | I23: pdf | J23: 324 | K23: 4 x cover page per book | L23: 15 | M23: 810
C24: Level 2: Thandi has a bad day | D24: DBE | E24: SiSwati | F24: 538 | G24: N/A | H24: 6 | I24: pdf | J24: 3228 | K24: 4 x cover page per book | L24: 15 | M24: 8070
D25: DBE | E25: IsiZulu | F25: 175 | G25: N/A | H25: 6 | I25: pdf | J25: 1050 | K25: 4 x cover page per book | L25: 15 | M25: 2625
D26: DBE | E26: IsiNdebele | F26: 279 | G26: N/A | H26: 6 | I26: pdf | J26: 1674 | K26: 4 x cover page per book | L26: 15 | M26: 4185
D27: DBE | E27: Sepedi | F27: 137 | G27: N/A | H27: 6 | I27: pdf | J27: 822 | K27: 4 x cover page per book | L27: 15 | M27: 2055
D28: DBE | E28: Setswana | F28: 54 | G28: N/A | H28: 6 | I28: pdf | J28: 324 | K28: 4 x cover page per book | L28: 15 | M28: 810
C29: Level 2: The great escape | D29: DBE | E29: SiSwati | F29: 538 | G29: N/A | H29: 6 | I29: pdf | J29: 3228 | K29: 4 x cover page per book | L29: 15 | M29: 8070
D30: DBE | E30: IsiZulu | F30: 175 | G30: N/A | H30: 6 | I30: pdf | J30: 1050 | K30: 4 x cover page per book | L30: 15 | M30: 2625
D31: DBE | E31: IsiNdebele | F31: 279 | G31: N/A | H31: 6 | I31: pdf | J31: 1674 | K31: 4 x cover page per book | L31: 15 | M31: 4185
D32: DBE | E32: Sepedi | F32: 137 | G32: N/A | H32: 6 | I32: pdf | J32: 822 | K32: 4 x cover page per book | L32: 15 | M32: 2055
D33: DBE | E33: Setswana | F33: 54 | G33: N/A | H33: 6 | I33: pdf | J33: 324 | K33: 4 x cover page per book | L33: 15 | M33: 810
C34: Level 2: Weekend to remember | D34: DBE | E34: SiSwati | F34: 538 | G34: N/A | H34: 6 | I34: pdf | J34: 3228 | K34: 4 x cover page per book | L34: 15 | M34: 8070
D35: DBE | E35: IsiZulu | F35: 175 | G35: N/A | H35: 6 | I35: pdf | J35: 1050 | K35: 4 x cover page per book | L35: 15 | M35: 2625
D36: DBE | E36: IsiNdebele | F36: 279 | G36: N/A | H36: 6 | I36: pdf | J36: 1674 | K36: 4 x cover page per book | L36: 15 | M36: 4185
D37: DBE | E37: Sepedi | F37: 137 | G37: N/A | H37: 6 | I37: pdf | J37: 822 | K37: 4 x cover page per book | L37: 15 | M37: 2055
D38: DBE | E38: Setswana | F38: 54 | G38: N/A | H38: 6 | I38: pdf | J38: 324 | K38: 4 x cover page per book | L38: 15 | M38: 810
C39: Level 3: Missing cupcake | D39: DBE | E39: SiSwati | F39: 538 | G39: N/A | H39: 6 | I39: pdf | J39: 3228 | K39: 4 x cover page per book | L39: 15 | M39: 8070
D40: DBE | E40: IsiZulu | F40: 175 | G40: N/A | H40: 6 | I40: pdf | J40: 1050 | K40: 4 x cover page per book | L40: 15 | M40: 2625
D41: DBE | E41: IsiNdebele | F41: 279 | G41: N/A | H41: 6 | I41: pdf | J41: 1674 | K41: 4 x cover page per book | L41: 15 | M41: 4185
D42: DBE | E42: Sepedi | F42: 137 | G42: N/A | H42: 6 | I42: pdf | J42: 822 | K42: 4 x cover page per book | L42: 15 | M42: 2055
D43: DBE | E43: Setswana | F43: 54 | G43: N/A | H43: 6 | I43: pdf | J43: 324 | K43: 4 x cover page per book | L43: 15 | M43: 810
C44: Level 3: Monster in cupboard | D44: DBE | E44: SiSwati | F44: 538 | G44: N/A | H44: 6 | I44: pdf | J44: 3228 | K44: 4 x cover page per book | L44: 15 | M44: 8070
D45: DBE | E45: IsiZulu | F45: 175 | G45: N/A | H45: 6 | I45: pdf | J45: 1050 | K45: 4 x cover page per book | L45: 15 | M45: 2625
D46: DBE | E46: IsiNdebele | F46: 279 | G46: N/A | H46: 6 | I46: pdf | J46: 1674 | K46: 4 x cover page per book | L46: 15 | M46: 4185
D47: DBE | E47: Sepedi | F47: 137 | G47: N/A | H47: 6 | I47: pdf | J47: 822 | K47: 4 x cover page per book | L47: 15 | M47: 2055
D48: DBE | E48: Setswana | F48: 54 | G48: N/A | H48: 6 | I48: pdf | J48: 324 | K48: 4 x cover page per book | L48: 15 | M48: 810
C49: Level 3: Strange but true | D49: DBE | E49: SiSwati | F49: 538 | G49: N/A | H49: 6 | I49: pdf | J49: 3228 | K49: 4 x cover page per book | L49: 15 | M49: 8070
D50: DBE | E50: IsiZulu | F50: 175 | G50: N/A | H50: 6 | I50: pdf | J50: 1050 | K50: 4 x cover page per book | L50: 15 | M50: 2625
D51: DBE | E51: IsiNdebele | F51: 279 | G51: N/A | H51: 6 | I51: pdf | J51: 1674 | K51: 4 x cover page per book | L51: 15 | M51: 4185
D52: DBE | E52: Sepedi | F52: 137 | G52: N/A | H52: 6 | I52: pdf | J52: 822 | K52: 4 x cover page per book | L52: 15 | M52: 2055
D53: DBE | E53: Setswana | F53: 54 | G53: N/A | H53: 6 | I53: pdf | J53: 324 | K53: 4 x cover page per book | L53: 15 | M53: 810
C54: Level 3: Little red hen | D54: DBE | E54: SiSwati | F54: 538 | G54: N/A | H54: 6 | I54: pdf | J54: 3228 | K54: 4 x cover page per book | L54: 15 | M54: 8070
D55: DBE | E55: IsiZulu | F55: 175 | G55: N/A | H55: 6 | I55: pdf | J55: 1050 | K55: 4 x cover page per book | L55: 15 | M55: 2625
D56: DBE | E56: IsiNdebele | F56: 279 | G56: N/A | H56: 6 | I56: pdf | J56: 1674 | K56: 4 x cover page per book | L56: 15 | M56: 4185
D57: DBE | E57: Sepedi | F57: 137 | G57: N/A | H57: 6 | I57: pdf | J57: 822 | K57: 4 x cover page per book | L57: 15 | M57: 2055
D58: DBE | E58: Setswana | F58: 54 | G58: N/A | H58: 6 | I58: pdf | J58: =F58*H58 -> 324 | K58: 4 x cover page per book | L58: 15 | M58: 810
L59: TOTAL | M59: =SUM(M4:M58) -> 195195
